fUST/lending_fUST_20250918
["ID","MTS","AMOUNT","RATE_DAILY","PERIOD"]
[385931687,1758137440860,-293.33,0.00023827,3]
[385931689,1758137440870,-183.39,0.00023828,3]
[385931691,1758137440879,-595.36,0.00023828,3]
[385931693,1758137440888,-480.0,0.00023828,3]
[385931695,1758137440897,-480.0,0.00023828,3]
[385931697,1758137440906,-480.0,0.0002383,3]
[385931699,1758137440915,-480.0,0.0002383,3]
[385931701,1758137440924,-480.0,0.00023831,3]
[385931703,1758137440933,-1199.67,0.00023831,3]
[385931705,1758137440942,-8582.97,0.00023831,3]
[385931707,1758137440951,-480.0,0.00023932,3]
[385931709,1758137440959,-704.33,0.00023932,3]
[385931711,1758137440968,-663.08,0.00023932,3]
[385931712,1758137440978,-150.0,0.0002395,2]
[385931714,1758137440988,-841.86,0.00024006,3]
[385931716,1758137440998,-300.0,0.00024016,20]
[385931718,1758137441007,-300.0,0.00024016,20]
[385931719,1758137441016,-300.0,0.00024016,20]
[385931721,1758137441025,-300.0,0.00024016,20]
[385931723,1758137441037,-300.0,0.00024016,20]
[385931725,1758137441050,-300.0,0.00024016,20]
[385931728,1758137441063,-300.0,0.00024016,20]
[385931730,1758137441075,-300.0,0.00024016,20]
[385931732,1758137441088,-300.0,0.00024016,20]
[385931734,1758137441100,-300.0,0.00024016,20]
[385931736,1758137441110,-300.0,0.00024016,20]
[385931738,1758137441122,-300.0,0.00024016,20]
[385931740,1758137441135,-300.0,0.00024016,20]
[385931742,1758137441146,-300.0,0.00024016,20]
[385931744,1758137441158,-300.0,0.00024016,20]
[385931746,1758137441171,-845.95,0.00024091,3]
[385931748,1758137441184,-480.0,0.00024091,3]
[385931750,1758137441195,-538.4,0.00024091,3]
[385931752,1758137441207,-789.77,0.00024091,3]
[385931754,1758137441219,-480.0,0.00024091,3]
[385931756,1758137441231,-480.0,0.00024091,3]
[385931758,1758137441243,-274.6,0.00024091,3]
[385931760,1758137441255,-542.09,0.00024091,3]
[385931762,1758137441267,-480.0,0.00024091,3]
[385931764,1758137441279,-630.89,0.00024091,3]
[385931766,1758137441289,-480.0,0.00024091,3]
[385931768,1758137441300,-480.0,0.00024091,3]
[385931770,1758137441311,-480.0,0.00024091,3]
[385931772,1758137441323,-480.0,0.00024092,3]
[385931774,1758137441335,-480.0,0.00024092,3]
[385931776,1758137441346,-480.0,0.00024092,3]
[385931778,1758137441357,-298.14,0.00024092,3]
[385931780,1758137441367,-1103.56,0.00024092,3]
[385931782,1758137441376,-480.0,0.00024092,3]
[385931784,1758137441386,-480.0,0.00024092,3]
[385931786,1758137441397,-480.0,0.00024092,3]
[385931788,1758137441408,-460.66902287,0.00024092,3]
[385931789,1758137441420,-1823.2,0.00024092,3]
[385931792,1758137441432,-480.0,0.00024092,3]
[385931794,1758137441443,-480.0,0.00024092,3]
[385931796,1758137441454,-574.0,0.00024092,3]
[385931798,1758137441466,-480.0,0.00024092,3]
[385931800,1758137441477,-611.38,0.00024092,3]
[385931802,1758137441489,-549.03271838,0.00024092,3]
[385931803,1758137441500,-679.97,0.00024092,3]
[385931805,1758137441511,-572.52,0.00024092,3]
[385931807,1758137441522,-480.0,0.00024092,3]
[385931809,1758137441534,-480.0,0.00024092,3]
[385931811,1758137441543,-480.0,0.00024092,3]
[385931813,1758137441553,-865.35,0.00024092,3]
[385931815,1758137441563,-1241.0,0.00024092,3]
[385931817,1758137441572,-480.0,0.00024092,3]
[385931819,1758137441583,-480.0,0.00024092,3]
[385931821,1758137441594,-480.0,0.00024092,3]
[385931823,1758137441607,-480.0,0.00024093,3]
[385931825,1758137441619,-283.54,0.00024093,3]
[385931827,1758137441629,-480.0,0.00024093,3]
[385931829,1758137441639,-480.0,0.00024093,3]
[385931831,1758137441650,-2884.19,0.00024094,3]
[385931833,1758137441660,-480.0,0.00024101,3]
[385931835,1758137441671,-480.0,0.00024101,3]
[385931837,1758137441683,-480.0,0.00024101,3]
[385931839,1758137441694,-1481.95,0.00024101,3]
[385931841,1758137441705,-595.36,0.00024102,3]
[385931843,1758137441715,-480.0,0.00024102,3]
[385931845,1758137441725,-259.80030642,0.00024102,3]
[385931847,1758137441735,-388.93206816,0.00024104,3]
[385931849,1758137441746,-480.0,0.00024104,3]
[385931851,1758137441756,-480.0,0.00024105,3]
[385931853,1758137441766,-1199.67,0.00024105,3]
[385931855,1758137441777,-8582.97,0.00024105,3]
[385931857,1758137441787,-1000.0,0.00024121,2]
[385931859,1758137441798,-1000.0,0.00024121,2]
[385931861,1758137441808,-500.0,0.00024121,2]
[385931863,1758137441823,-910.6,0.000242,7]
[385931865,1758137441834,-480.0,0.00024206,3]
[385931867,1758137441845,-704.33,0.00024206,3]
[385931869,1758137441856,-663.08,0.00024206,3]
[385931871,1758137441866,-4945.94268626,0.00024275,2]
[385931873,1758137441877,-299.99999901,0.000243,2]
[385931875,1758137441888,-845.95,0.00024365,3]
[385931877,1758137441899,-480.0,0.00024365,3]
[385931878,1758137441912,-538.4,0.00024365,3]
[385931880,1758137441924,-789.77,0.00024365,3]
[385931882,1758137441935,-480.0,0.00024365,3]
[385931884,1758137441945,-480.0,0.00024365,3]
[385931886,1758137441955,-480.0,0.00024365,3]
[385931888,1758137441966,-630.89,0.00024365,3]
[385931890,1758137441977,-480.0,0.00024365,3]
[385931892,1758137441987,-480.0,0.00024365,3]
[385931894,1758137441997,-480.0,0.00024365,3]
[385931896,1758137442008,-480.0,0.00024366,3]
[385931898,1758137442018,-480.0,0.00024366,3]
[385931900,1758137442029,-480.0,0.00024366,3]
[385931902,1758137442039,-1103.56,0.00024366,3]
[385931904,1758137442050,-480.0,0.00024366,3]
[385931906,1758137442060,-480.0,0.00024366,3]
[385931908,1758137442071,-480.0,0.00024366,3]
[385931910,1758137442082,-1823.2,0.00024366,3]
[385931912,1758137442092,-480.0,0.00024366,3]
[385931914,1758137442102,-480.0,0.00024366,3]
[385931916,1758137442113,-574.0,0.00024366,3]
[385931918,1758137442124,-480.0,0.00024366,3]
[385931920,1758137442135,-572.52,0.00024366,3]
[385931922,1758137442146,-679.97,0.00024366,3]
[385931924,1758137442157,-480.0,0.00024366,3]
[385931926,1758137442168,-480.0,0.00024366,3]
[385931928,1758137442178,-480.0,0.00024366,3]
[385931930,1758137442188,-865.35,0.00024366,3]
[385931932,1758137442199,-1241.0,0.00024366,3]
[385931934,1758137442209,-480.0,0.00024366,3]
[385931936,1758137442220,-539.49,0.00024366,3]
[385931947,1758137442231,-480.0,0.00024366,3]
[385931950,1758137442355,-480.0,0.00024367,3]
[385931951,1758137442364,-480.0,0.00024367,3]
[385931953,1758137442374,-480.0,0.00024367,3]
[385931955,1758137442383,-2884.19,0.00024368,3]
[385931957,1758137442393,-165.72,0.00024374,2]
[385931959,1758137442402,-480.0,0.00024375,3]
[385931961,1758137442411,-480.0,0.00024375,3]
[385931963,1758137442422,-480.0,0.00024375,3]
[385931964,1758137442431,-1481.95,0.00024375,3]
[385931966,1758137442441,-595.36,0.00024376,3]
[385931968,1758137442450,-480.0,0.00024376,3]
[385931970,1758137442460,-493.1,0.00024378,3]
[385931972,1758137442469,-480.0,0.00024379,3]
[385931974,1758137442478,-1199.67,0.00024379,3]
[385931976,1758137442488,-8582.97,0.00024379,3]
[385931978,1758137442497,-151.0,0.000244,8]
[385931980,1758137442507,-168.0,0.00024469,2]
[385931981,1758137442516,-480.0,0.0002448,3]
[385931983,1758137442525,-704.33,0.0002448,3]
[385931985,1758137442534,-663.08,0.0002448,3]
[385931987,1758137442543,-151.0,0.000245,6]
[385931989,1758137442553,-252.89544308,0.00024502,2]
[385931991,1758137442562,-160.0,0.00024517,2]
[385931993,1758137442571,-151.0,0.000246,7]
[385931995,1758137442580,-168.0,0.00024624,2]
[385931997,1758137442589,-845.95,0.00024639,3]
[385931998,1758137442599,-480.0,0.00024639,3]
[385932000,1758137442608,-538.4,0.00024639,3]
[385932002,1758137442617,-789.77,0.00024639,3]
[385932004,1758137442626,-480.0,0.00024639,3]
[385932006,1758137442635,-480.0,0.00024639,3]
[385932008,1758137442645,-480.0,0.00024639,3]
[385932010,1758137442654,-630.89,0.00024639,3]
[385932011,1758137442663,-480.0,0.00024639,3]
[385932013,1758137442673,-480.0,0.00024639,3]
[385932015,1758137442682,-480.0,0.00024639,3]
[385932017,1758137442692,-480.0,0.0002464,3]
[385932019,1758137442701,-480.0,0.0002464,3]
[385932021,1758137442710,-480.0,0.0002464,3]
[385932023,1758137442719,-1103.56,0.0002464,3]
[385932024,1758137442729,-480.0,0.0002464,3]
[385932026,1758137442737,-480.0,0.0002464,3]
[385932028,1758137442747,-480.0,0.0002464,3]
[385932030,1758137442755,-1823.2,0.0002464,3]
[385932032,1758137442765,-190.74,0.0002464,3]
[385932034,1758137442774,-480.0,0.0002464,3]
[385932036,1758137442782,-574.0,0.0002464,3]
[385932037,1758137442791,-480.0,0.0002464,3]
[385932039,1758137442800,-572.52,0.0002464,3]
[385932041,1758137442810,-679.97,0.0002464,3]
[385932043,1758137442823,-480.0,0.0002464,3]
[385932045,1758137442832,-480.0,0.0002464,3]
[385932047,1758137442841,-480.0,0.0002464,3]
[385932049,1758137442851,-865.35,0.0002464,3]
[385932051,1758137442861,-1241.0,0.0002464,3]
[385932052,1758137442871,-480.0,0.0002464,3]
[385932054,1758137442880,-480.0,0.0002464,3]
[385932056,1758137442891,-480.0,0.00024641,3]
[385932058,1758137442901,-480.0,0.00024641,3]
[385932060,1758137442911,-480.0,0.00024641,3]
[385932062,1758137442920,-2884.19,0.00024642,3]
[385932064,1758137442929,-480.0,0.00024649,3]
[385932066,1758137442938,-480.0,0.00024649,3]
[385932069,1758137442947,-480.0,0.00024649,3]
[385932071,1758137442956,-1481.95,0.00024649,3]
[385932073,1758137442967,-595.36,0.0002465,3]
[385932075,1758137442976,-480.0,0.0002465,3]
[385932077,1758137442985,-480.0,0.00024653,3]
[385932079,1758137442994,-1199.67,0.00024653,3]
[385932081,1758137443003,-500.0,0.00024658,2]
[385932083,1758137443012,-500.0,0.00024658,2]
[385932086,1758137443022,-1451.77186906,0.00024668,2]
[385932089,1758137443031,-1500.0,0.00024668,2]
[385932093,1758137443041,-288.0,0.00024679,2]
[385932096,1758137443050,-192.0,0.00024682,7]
[385932099,1758137443059,-1837.0,0.00024713,2]
[385932102,1758137443068,-977.0,0.00024731,2]
[385932104,1758137443077,-634.0,0.00024731,2]
[385932107,1758137443087,-2156.0,0.00024731,2]
[385932110,1758137443097,-410.0,0.00024731,2]
[385932113,1758137443106,-480.0,0.00024754,3]
[385932116,1758137443115,-704.33,0.00024754,3]
[385932119,1758137443124,-663.08,0.00024754,3]
[385932121,1758137443134,-157.07382482,0.00024773,2]
[385932123,1758137443143,-500.0,0.00024773,2]
[385932125,1758137443153,-500.0,0.00024773,2]
[385932126,1758137443162,-209.05238701,0.00024773,2]
[385932129,1758137443174,-2000.0,0.000248,2]
[385932132,1758137443184,-1073.6,0.000248,2]
[385932134,1758137443193,-151.0,0.000248,7]
[385932136,1758137443202,-174.59529715,0.00024813,2]
[385932138,1758137443212,-614.40903755,0.00024873,2]
[385932139,1758137443222,-500.0,0.00024873,2]
[385932140,1758137443231,-500.0,0.00024873,2]
[385932142,1758137443241,-500.0,0.00024873,2]
[385932144,1758137443250,-500.0,0.00024873,2]
[385932146,1758137443259,-500.0,0.00024873,2]
[385932148,1758137443268,-502.83841149,0.00024873,2]
[385932150,1758137443277,-500.0,0.00024873,2]
[385932152,1758137443286,-150.0,0.00024899,2]
[385932154,1758137443294,-730158.407374,0.000249,2]
[385932156,1758137443303,-845.95,0.00024913,3]
[385932157,1758137443312,-480.0,0.00024913,3]
[385932159,1758137443320,-538.4,0.00024913,3]
[385932161,1758137443329,-789.77,0.00024913,3]
[385932163,1758137443338,-480.0,0.00024913,3]
[385932165,1758137443347,-480.0,0.00024913,3]
[385932167,1758137443356,-480.0,0.00024913,3]
[385932169,1758137443365,-630.89,0.00024913,3]
[385932170,1758137443374,-480.0,0.00024913,3]
[385932172,1758137443384,-480.0,0.00024913,3]
[385932174,1758137443394,-480.0,0.00024913,3]
[385932176,1758137443403,-340.71,0.00024914,3]
[385932178,1758137443412,-415.14,0.00024914,3]
[385932180,1758137443424,-480.0,0.00024914,3]
[385932182,1758137443433,-1103.56,0.00024914,3]
[385932184,1758137443443,-480.0,0.00024914,3]
[385932186,1758137443452,-480.0,0.00024914,3]
[385932188,1758137443461,-178.4,0.00024914,3]
[385932190,1758137443472,-1823.2,0.00024914,3]
[385932192,1758137443481,-157.01,0.00024914,3]
[385932193,1758137443490,-574.0,0.00024914,3]
[385932195,1758137443500,-312.56,0.00024914,3]
[385932197,1758137443509,-572.52,0.00024914,3]
[385932199,1758137443518,-679.97,0.00024914,3]
[385932201,1758137443527,-402.89,0.00024914,3]
[385932203,1758137443537,-480.0,0.00024914,3]
[385932205,1758137443546,-480.0,0.00024914,3]
[385932207,1758137443556,-865.35,0.00024914,3]
[385932209,1758137443565,-1241.0,0.00024914,3]
[385932211,1758137443575,-480.0,0.00024914,3]
[385932212,1758137443584,-480.0,0.00024914,3]
[385932214,1758137443593,-480.0,0.00024915,3]
[385932216,1758137443602,-480.0,0.00024915,3]
[385932218,1758137443611,-585.48,0.00024915,3]
[385932220,1758137443620,-2884.19,0.00024916,3]
[385932222,1758137443629,-183.18,0.00024923,3]
[385932224,1758137443638,-480.0,0.00024923,3]
[385932226,1758137443647,-480.0,0.00024923,3]
[385932227,1758137443656,-1481.95,0.00024923,3]
[385932229,1758137443667,-595.36,0.00024924,3]
[385932231,1758137443676,-480.0,0.00024924,3]
[385932233,1758137443685,-480.0,0.00024927,3]
[385932234,1758137443694,-1199.67,0.00024927,3]
[385932235,1758137443703,-500.0,0.00024932,2]
[385932236,1758137443713,-500.0,0.00024932,2]
[385932237,1758137443722,-700.0,0.00024986,2]
[385932238,1758137443731,-865.50712061,0.0002499,2]
[385932239,1758137443740,-150.0,0.00024992,2]
[385932240,1758137443749,-1071.06049471,0.00025,2]
[385932241,1758137443759,-10500.46608821,0.00025,2]
[385932242,1758137443768,-204.73973,0.00025,2]
[385932243,1758137443778,-417.15472785,0.00025,10]
[385932244,1758137443787,-480.0,0.00025028,3]
[385932246,1758137443796,-704.33,0.00025028,3]
[385932248,1758137443807,-663.08,0.00025028,3]
[385932250,1758137443819,-260.0,0.00025065,2]
[385932252,1758137443828,-168.0,0.00025094,2]
[385932254,1758137443837,-845.95,0.00025187,3]
[385932256,1758137443846,-480.0,0.00025187,3]
[385932258,1758137443855,-538.4,0.00025187,3]
[385932259,1758137443864,-789.77,0.00025187,3]
[385932261,1758137443874,-480.0,0.00025187,3]
[385932263,1758137443883,-191.48,0.00025187,3]
[385932265,1758137443893,-480.0,0.00025187,3]
[385932267,1758137443902,-630.89,0.00025187,3]
[385932269,1758137443911,-480.0,0.00025187,3]
[385932271,1758137443921,-480.0,0.00025187,3]
[385932274,1758137443930,-480.0,0.00025187,3]
[385932276,1758137443939,-236.61,0.00025188,3]
[385932277,1758137443948,-1103.56,0.00025188,3]
[385932279,1758137443957,-480.0,0.00025188,3]
[385932281,1758137443967,-480.0,0.00025188,3]
[385932283,1758137443977,-1823.2,0.00025188,3]
[385932285,1758137443987,-574.0,0.00025188,3]
[385932287,1758137443996,-572.52,0.00025188,3]
[385932289,1758137444005,-679.97,0.00025188,3]
[385932291,1758137444014,-480.0,0.00025188,3]
[385932293,1758137444023,-480.0,0.00025188,3]
[385932295,1758137444032,-865.35,0.00025188,3]
[385932297,1758137444042,-1241.0,0.00025188,3]
[385932298,1758137444051,-480.0,0.00025188,3]
[385932300,1758137444060,-480.0,0.00025188,3]
[385932302,1758137444069,-480.0,0.00025189,3]
[385932304,1758137444078,-480.0,0.00025189,3]
[385932306,1758137444087,-2884.19,0.0002519,3]
[385932308,1758137444096,-1122.48,0.00025191,3]
[385932310,1758137444105,-561.24,0.00025191,3]
[385932311,1758137444114,-432.24,0.00025191,3]
[385932313,1758137444123,-480.0,0.00025197,3]
[385932315,1758137444133,-480.0,0.00025197,3]
[385932317,1758137444142,-1481.95,0.00025197,3]
[385932319,1758137444151,-595.36,0.00025198,3]
[385932321,1758137444161,-480.0,0.00025198,3]
[385932323,1758137444171,-480.0,0.00025201,3]
[385932325,1758137444180,-1199.67,0.00025201,3]
[385932327,1758137444189,-500.0,0.00025206,2]
[385932328,1758137444198,-500.0,0.00025206,2]
[385932330,1758137444209,-500.0,0.00025216,2]
[385932332,1758137444218,-165.72,0.0002522,7]
[385932334,1758137444228,-216.0,0.0002524,7]
[385932336,1758137444237,-420.0,0.00025252,2]
[385932338,1758137444246,-420.0,0.00025252,2]
[385932340,1758137444256,-216.0,0.00025275,2]
[385932342,1758137444265,-480.0,0.00025302,3]
[385932344,1758137444274,-704.33,0.00025302,3]
[385932346,1758137444284,-663.08,0.00025302,3]
[385932347,1758137444293,-1000.0,0.00025321,2]
[385932349,1758137444302,-500.0,0.00025321,2]
[385932351,1758137444311,-600.0,0.00025386,2]
[385932353,1758137444321,-1000.0,0.00025421,2]
[385932355,1758137444330,-1000.0,0.00025421,2]
[385932357,1758137444339,-1000.0,0.00025421,2]
[385932358,1758137444348,-1000.0,0.00025421,2]
[385932360,1758137444357,-1000.0,0.00025421,2]
[385932361,1758137444366,-845.95,0.00025461,3]
[385932362,1758137444375,-480.0,0.00025461,3]
[385932363,1758137444384,-538.4,0.00025461,3]
[385932364,1758137444393,-789.77,0.00025461,3]
[385932365,1758137444402,-480.0,0.00025461,3]
[385932366,1758137444411,-480.0,0.00025461,3]
[385932367,1758137444421,-630.89,0.00025461,3]
[385932368,1758137444430,-569.21,0.00025461,3]
[385932369,1758137444440,-480.0,0.00025461,3]
[385932370,1758137444449,-480.0,0.00025461,3]
[385932371,1758137444458,-1103.56,0.00025462,3]
[385932372,1758137444467,-480.0,0.00025462,3]
[385932373,1758137444477,-480.0,0.00025462,3]
[385932374,1758137444486,-1823.2,0.00025462,3]
[385932375,1758137444495,-574.0,0.00025462,3]
[385932376,1758137444505,-572.52,0.00025462,3]
[385932377,1758137444514,-679.97,0.00025462,3]
[385932378,1758137444523,-480.0,0.00025462,3]
[385932379,1758137444532,-480.0,0.00025462,3]
[385932380,1758137444541,-865.35,0.00025462,3]
[385932381,1758137444550,-1241.0,0.00025462,3]
[385932382,1758137444559,-365.53752691,0.00025462,3]
[385932383,1758137444568,-480.0,0.00025462,3]
[385932384,1758137444577,-480.0,0.00025463,3]
[385932385,1758137444586,-480.0,0.00025463,3]
[385932386,1758137444595,-2884.19,0.00025464,3]
[385932387,1758137444604,-480.0,0.00025471,3]
[385932388,1758137444613,-480.0,0.00025471,3]
[385932389,1758137444622,-1481.95,0.00025471,3]
[385932390,1758137444631,-595.36,0.00025472,3]
[385932391,1758137444640,-480.0,0.00025472,3]
[385932392,1758137444649,-480.0,0.00025475,3]
[385932393,1758137444658,-1199.67,0.00025475,3]
[385932394,1758137444668,-500.0,0.0002548,2]
[385932395,1758137444678,-500.0,0.0002548,2]
[385932396,1758137444687,-1010.57019054,0.00025499,2]
[385932397,1758137444697,-151.0,0.000255,14]
[385932398,1758137444706,-480.0,0.00025576,3]
[385932399,1758137444716,-704.33,0.00025576,3]
[385932400,1758137444725,-663.08,0.00025576,3]
[385932401,1758137444735,-168.0,0.00025611,2]
[385932402,1758137444744,-360.0,0.00025613,2]
[385932403,1758137444753,-216.0,0.00025626,2]
[385932404,1758137444763,-1402.00249473,0.0002565,2]
[385932405,1758137444772,-898.93599219,0.00025651,2]
[385932406,1758137444782,-3312.7293038,0.00025651,2]
[385932407,1758137444790,-910.6,0.000257,7]
[385932408,1758137444799,-168.0,0.00025722,2]
[385932409,1758137444809,-845.95,0.00025735,3]
[385932410,1758137444821,-480.0,0.00025735,3]
[385932411,1758137444831,-538.4,0.00025735,3]
[385932412,1758137444929,-789.77,0.00025735,3]
[385932413,1758137444940,-480.0,0.00025735,3]
[385932414,1758137444950,-480.0,0.00025735,3]
[385932415,1758137444959,-630.89,0.00025735,3]
[385932417,1758137444968,-480.0,0.00025735,3]
[385932418,1758137444978,-480.0,0.00025735,3]
[385932419,1758137444987,-480.0,0.00025736,3]
[385932421,1758137444996,-480.0,0.00025736,3]
[385932423,1758137445005,-1103.56,0.00025736,3]
[385932425,1758137445014,-494.24,0.00025736,3]
[385932427,1758137445023,-480.0,0.00025736,3]
[385932429,1758137445032,-1823.2,0.00025736,3]
[385932431,1758137445041,-574.0,0.00025736,3]
[385932433,1758137445050,-572.52,0.00025736,3]
[385932435,1758137445059,-679.97,0.00025736,3]
[385932437,1758137445068,-480.0,0.00025736,3]
[385932439,1758137445077,-480.0,0.00025736,3]
[385932440,1758137445086,-865.35,0.00025736,3]
[385932442,1758137445095,-1241.0,0.00025736,3]
[385932444,1758137445105,-480.0,0.00025736,3]
[385932446,1758137445114,-2884.19,0.00025738,3]
[385932448,1758137445123,-253.66,0.00025745,3]
[385932450,1758137445132,-604.47,0.00025745,3]
[385932452,1758137445141,-1481.95,0.00025745,3]
[385932453,1758137445151,-595.36,0.00025746,3]
[385932455,1758137445160,-480.0,0.00025746,3]
[385932457,1758137445171,-480.0,0.00025749,3]
[385932459,1758137445180,-1199.67,0.00025749,3]
[385932460,1758137445190,-500.0,0.00025754,2]
[385932462,1758137445199,-500.0,0.00025754,2]
[385932464,1758137445212,-168.0,0.00025787,2]
[385932466,1758137445221,-168.0,0.0002579,2]
[385932468,1758137445230,-2000.0,0.000258,2]
[385932470,1758137445240,-480.0,0.0002585,3]
[385932472,1758137445249,-704.33,0.0002585,3]
[385932474,1758137445258,-663.08,0.0002585,3]
[385932476,1758137445268,-1500.0,0.00025868,2]
[385932478,1758137445278,-155.0,0.00025898,2]
[385932480,1758137445286,-151.0,0.00025901,5]
[385932482,1758137445295,-216.0,0.00025962,2]
[385932484,1758137445305,-1484.8258088,0.00025968,2]
[385932486,1758137445314,-1500.0,0.00025968,2]
[385932488,1758137445323,-1500.0,0.00025968,2]
[385932490,1758137445332,-1500.0,0.00025968,2]
[385932492,1758137445341,-1500.0,0.00025968,2]
[385932494,1758137445350,-156.66,0.00026003,2]
[385932496,1758137445360,-845.95,0.00026009,3]
[385932498,1758137445369,-480.0,0.00026009,3]
[385932500,1758137445378,-538.4,0.00026009,3]
[385932502,1758137445387,-789.77,0.00026009,3]
[385932504,1758137445396,-277.04,0.00026009,3]
[385932506,1758137445405,-168.91178535,0.00026009,3]
[385932508,1758137445414,-630.89,0.00026009,3]
[385932510,1758137445424,-480.0,0.00026009,3]
[385932512,1758137445433,-480.0,0.00026009,3]
[385932514,1758137445442,-480.0,0.0002601,3]
[385932515,1758137445451,-480.0,0.0002601,3]
[385932516,1758137445460,-1103.56,0.0002601,3]
[385932517,1758137445470,-480.0,0.0002601,3]
[385932518,1758137445480,-1823.2,0.0002601,3]
[385932519,1758137445489,-574.0,0.0002601,3]
[385932520,1758137445498,-572.52,0.0002601,3]
[385932521,1758137445508,-679.97,0.0002601,3]
[385932522,1758137445517,-480.0,0.0002601,3]
[385932523,1758137445528,-480.0,0.0002601,3]
[385932524,1758137445537,-865.35,0.0002601,3]
[385932525,1758137445546,-1241.0,0.0002601,3]
[385932526,1758137445556,-351.43133732,0.0002601,3]
[385932527,1758137445565,-3009.59,0.0002601,3]
[385932528,1758137445574,-2884.19,0.00026012,3]
[385932529,1758137445583,-1481.95,0.00026019,3]
[385932530,1758137445592,-595.36,0.0002602,3]
[385932531,1758137445601,-480.0,0.0002602,3]
[385932532,1758137445611,-480.0,0.00026023,3]
[385932533,1758137445620,-1199.67,0.00026023,3]
[385932534,1758137445629,-500.0,0.00026028,2]
[385932535,1758137445638,-500.0,0.00026028,2]
[385932536,1758137445647,-150.0,0.00026033,2]
[385932537,1758137445657,-165.72,0.00026065,7]
[385932538,1758137445667,-168.0,0.00026076,2]
[385932539,1758137445677,-700.0,0.00026082,2]
[385932540,1758137445687,-720.0,0.0002612,20]
[385932541,1758137445696,-480.0,0.00026124,3]
[385932542,1758137445705,-704.33,0.00026124,3]
[385932543,1758137445716,-663.08,0.00026124,3]
[385932544,1758137445726,-460.0,0.00026161,2]
[385932545,1758137445735,-151.0,0.00026173,5]
[385932546,1758137445745,-4945.94268626,0.00026189,2]
[385932547,1758137445754,-168.0,0.00026242,2]
[385932548,1758137445763,-845.95,0.00026283,3]
[385932549,1758137445772,-480.0,0.00026283,3]
[385932550,1758137445781,-538.4,0.00026283,3]
[385932551,1758137445790,-789.77,0.00026283,3]
[385932552,1758137445799,-630.89,0.00026283,3]
[385932553,1758137445809,-480.0,0.00026283,3]
[385932554,1758137445821,-480.0,0.00026283,3]
[385932555,1758137445830,-404.8230414,0.00026284,3]
[385932556,1758137445839,-480.0,0.00026284,3]
[385932557,1758137445848,-1103.56,0.00026284,3]
[385932558,1758137445857,-480.0,0.00026284,3]
[385932559,1758137445866,-1823.2,0.00026284,3]
[385932560,1758137445875,-574.0,0.00026284,3]
[385932562,1758137445885,-572.52,0.00026284,3]
[385932563,1758137445895,-679.97,0.00026284,3]
[385932565,1758137445905,-480.0,0.00026284,3]
[385932567,1758137445914,-480.0,0.00026284,3]